bitfinex/quotes_ETHUSD_20220120
["timestamp","ask_amount","ask_price","bid_price","bid_amount"]
[1642706391566,4.3341464,3235.5,3235.0,0.83767788]
[1642706391763,4.3341464,3235.5,3235.2,0.10328974]
[1642706392161,3.1,3235.5,3235.1,0.00170527]
[1642706392363,3.4,3235.5,3235.1,0.00170527]
[1642706392562,3.1,3235.5,3235.2,0.7728905]
[1642706393567,3.1,3235.5,3235.3,0.06636275]
[1642706393767,3.1,3235.5,3235.2,0.7728905]
[1642706394409,1.38052063,3235.4,3235.2,0.7728905]
[1642706394610,1.68052063,3235.4,3235.2,0.7728905]
[1642706396113,1.38052063,3235.4,3235.2,0.7728905]
[1642706396516,1.68052063,3235.4,3235.2,0.7728905]
[1642706397214,0.3,3235.4,3235.2,0.7728905]
[1642706397414,3.4,3235.5,3235.2,2.3185605]
[1642706397615,3.1,3235.5,3235.2,2.3185605]
[1642706397815,0.00113685,3235.6,3235.2,2.3185605]
[1642706398069,0.00113685,3235.6,3235.3,1.02492956]
[1642706398268,0.00113685,3235.6,3235.3,0.93505712]
[1642706398469,1.22781591,3236.3,3235.3,0.93505712]
[1642706398671,1.22781591,3236.3,3235.5,0.7728137]
[1642706398870,0.00341054,3236.2,3235.5,0.7728137]
[1642706399069,1.82781591,3236.3,3235.5,0.7728137]
[1642706399070,1.7259881,3236.3,3235.5,0.7728137]
[1642706399269,0.49817219,3236.3,3235.6,0.00341054]
[1642706399475,0.9071862,3236.5,3235.6,0.00341054]
[1642706399871,0.00113685,3236.4,3235.6,0.00341054]
[1642706400075,0.00113685,3236.4,3235.8,0.77273]
[1642706400277,0.00113685,3236.4,3236.3,4.19999454]
[1642706400473,0.00113685,3236.4,3236.3,0.94999454]
[1642706402518,0.1,3237.1,3236.4,6.25]
[1642706402718,0.1,3237.1,3236.5,0.92510184]
[1642706402918,0.00341054,3237.0,3236.5,1.72128]
[1642706403316,0.00284211,3236.9,3236.5,1.72128]
[1642706403518,0.00284211,3236.9,3236.6,0.11503102]
[1642706403718,0.1,3237.1,3237.0,1.12152302]
[1642706404118,0.10113685,3237.1,3237.0,1.12152302]
[1642706405561,3.76341675,3238.6,3237.4,0.7723]
[1642706405964,0.00454739,3237.9,3237.5,0.07073585]
[1642706406168,0.00454739,3237.9,3237.5,0.93079055]
[1642706406466,0.00397897,3237.8,3237.5,0.8600547]
[1642706406864,0.00341054,3237.7,3237.5,0.8600547]
[1642706407269,0.1,3238.8,3237.6,2.31662]
[1642706407466,0.1,3238.8,3237.6,4.6333466]
[1642706407467,1.02871545,3238.6,3237.6,4.6333466]
[1642706407666,0.00454739,3237.9,3237.6,4.6333466]
[1642706408068,0.00397897,3237.8,3237.7,4.52819039]
[1642706408268,0.00397897,3237.8,3237.7,4.45]
[1642706408669,0.00397897,3237.8,3237.7,8.84313019]
[1642706408870,0.00397897,3237.8,3237.7,5.22218]
[1642706409609,0.00397897,3237.8,3237.7,8.76890637]
[1642706409814,0.00397897,3237.8,3237.7,5.22218]
[1642706410209,0.00397897,3237.8,3237.7,8.84222822]
[1642706410409,0.00397897,3237.8,3237.7,5.22218]
[1642706410811,0.00397897,3237.8,3237.6,4.6333466]
[1642706411013,0.00397897,3237.8,3237.6,1.5444844]
[1642706411211,3.4287643,3238.4,3237.3,1.1431]
[1642706411212,0.00341054,3237.7,3237.3,1.1431]
[1642706411611,0.00284212,3237.6,3237.3,1.1431]
[1642706412015,0.0022737,3237.5,3237.3,1.1431]
[1642706412216,0.0022737,3237.5,3237.4,5.3302522]
[1642706412419,1.52842252,3238.1,3237.4,5.3302522]
[1642706412420,1.52842252,3238.1,3237.4,0.9302522]
[1642706412616,1.82842252,3238.1,3237.4,0.9302522]
[1642706412815,0.00454739,3237.9,3237.4,0.9302522]
[1642706413067,0.00454739,3237.9,3237.5,0.07477778]
[1642706413270,0.00397897,3237.8,3237.5,0.07477778]
[1642706413468,0.00397897,3237.8,3237.5,1.61914778]
[1642706413668,0.00341054,3237.7,3237.5,2.54437]
[1642706414072,0.007,3238.4,3237.5,2.54437]
[1642706414073,0.00284212,3237.6,3237.5,2.54437]
[1642706415771,0.00284212,3237.6,3237.4,1.54437]
[1642706415973,0.00284212,3237.6,3237.3,1.54439]
[1642706416171,0.03,3238.0,3237.5,3.0977263]
[1642706416572,0.00227369,3237.9,3237.5,3.0977263]
[1642706417009,0.00170527,3237.8,3237.6,0.7722531]
[1642706417210,0.00170527,3237.8,3237.6,0.84173785]
[1642706417412,0.00113684,3237.7,3237.6,0.7722531]
[1642706418219,0.03,3238.0,3237.7,6.25]
[1642706418419,0.03,3238.0,3237.8,3.55423]
[1642706418617,0.00113685,3237.9,3237.8,4.55423]
[1642706418817,0.007,3238.4,3237.9,9.7]
[1642706419019,0.007,3238.4,3238.0,0.7719964]
[1642706419216,0.00227369,3238.3,3238.0,1.7719964]
[1642706419518,0.00170527,3238.2,3238.0,1.7719964]
[1642706419716,0.00170527,3238.2,3238.1,6.02202]
[1642706419917,0.007,3238.4,3238.1,0.77202]
[1642706420118,0.007,3238.4,3238.1,2.3161143]
[1642706420321,0.00227369,3238.3,3238.2,7.2132]
[1642706420776,0.05927369,3238.5,3238.2,7.2132]
[1642706420978,0.05927369,3238.5,3238.3,0.06450066]
[1642706421178,0.05927369,3238.5,3237.8,2.55521163]
[1642706421384,0.05927369,3238.5,3237.8,1.01120163]
[1642706421385,0.00439367,3238.4,3237.8,1.01120163]
[1642706421577,0.3,3238.4,3237.9,0.00227369]
[1642706421980,0.35927369,3238.5,3237.9,0.00227369]
[1642706422379,0.05927369,3238.5,3237.9,0.00227369]
[1642706423882,0.05927369,3238.5,3238.0,0.10696947]
[1642706424312,0.05927369,3238.5,3238.1,0.00113684]
[1642706424914,0.05927369,3238.5,3237.1,1.54454]
[1642706424915,0.37,3238.4,3237.5,0.00454738]
[1642706425114,3.93125561,3238.3,3237.2,0.00625265]
[1642706425313,0.37,3238.2,3237.2,0.00625265]
[1642706425517,3.40484527,3238.1,3237.2,0.00625265]
[1642706425714,4.62724118,3238.1,3237.3,1.13009114]
[1642706425914,6.1825375,3238.1,3237.3,1.13009114]
[1642706426119,6.1825375,3238.1,3237.4,0.00511581]
[1642706426318,0.6,3238.1,3237.4,0.00511581]
[1642706426518,0.3,3238.1,3237.5,0.06512689]
[1642706426718,0.97,3238.2,3237.4,0.00511581]
[1642706426920,0.3,3238.2,3237.6,0.00397896]
[1642706427217,0.3,3238.2,3237.3,1.13009114]
[1642706427218,0.05927369,3238.5,3237.4,0.00511581]
[1642706427818,1.02682926,3238.3,3237.4,0.00511581]
[1642706428074,0.3,3238.3,3237.5,0.09281497]
[1642706428265,0.05927369,3238.5,3237.4,1.94730581]
[1642706428266,0.35927369,3238.5,3237.4,1.94730581]
[1642706428466,0.35927369,3238.5,3237.6,0.00397896]
[1642706428667,0.05927369,3238.5,3237.5,0.00454738]
[1642706429067,0.05927369,3238.5,3237.7,0.77221]
[1642706429267,0.05927369,3238.5,3238.0,1.02864924]
[1642706429668,0.05927369,3238.5,3238.1,0.00113684]
[1642706431370,0.05927369,3238.5,3237.9,0.00227369]
[1642706432015,0.05927369,3238.5,3237.9,0.95804341]
[1642706432418,0.05927369,3238.5,3238.0,0.06782052]
[1642706432818,0.05927369,3238.5,3238.1,0.00113684]
[1642706433419,0.98154736,3238.5,3238.0,0.00170527]
[1642706433618,1.28154736,3238.5,3238.0,0.00170527]
[1642706433818,0.3,3238.4,3238.0,0.00170527]
[1642706434719,0.05927369,3238.5,3238.1,0.09043564]
[1642706435118,0.05927369,3238.5,3237.8,1.55970324]
[1642706435119,0.05927369,3238.5,3237.8,1.54709211]
[1642706435560,0.05927369,3238.5,3237.9,0.00227369]
[1642706435763,0.05927369,3238.5,3238.0,0.08322366]
[1642706435961,0.05927369,3238.5,3237.9,7.04567369]
[1642706435962,1.26998015,3238.3,3237.9,7.04567369]
[1642706436161,1.56998015,3238.3,3238.1,0.00113684]
[1642706436359,1.56998015,3238.3,3238.0,0.00170527]
[1642706436960,0.3,3238.3,3238.0,0.00170527]
[1642706437162,0.05927369,3238.5,3238.1,0.13271796]
[1642706437361,0.05927369,3238.5,3238.0,0.00170527]
[1642706437965,1.47185528,3238.1,3238.0,0.00170527]
[1642706438167,0.37,3238.1,3238.0,0.00170527]
[1642706438369,0.97,3238.1,3238.0,0.00170527]
[1642706438565,0.67,3238.1,3238.0,0.00170527]
[1642706438765,0.05927369,3238.5,3238.0,0.00170527]
[1642706439813,0.05927369,3238.5,3238.1,0.09809491]
[1642706440114,0.05927369,3238.5,3238.0,7.28000527]
[1642706440514,0.05927369,3238.5,3238.1,0.00113684]
[1642706441114,0.05927369,3238.5,3238.1,0.00033414]
[1642706441516,0.00137113,3238.4,3238.2,0.1262017]
[1642706441915,0.0008027,3238.3,3238.1,1.24603414]
[1642706442119,0.0008027,3238.3,3238.2,1.13970986]
[1642706446816,0.0008027,3238.3,3238.2,4.71705394]
[1642706447017,0.0008027,3238.3,3238.2,7.76705394]
[1642706447215,0.0008027,3238.3,3238.2,4.18970986]
[1642706447416,0.0008027,3238.3,3238.2,5.18970986]
[1642706447817,0.0008027,3238.3,3238.2,6.91012161]
[1642706448022,0.05927369,3238.5,3238.2,6.91012161]
[1642706448023,7.639e-05,3238.5,3238.3,6.25]
[1642706448221,0.1,3238.8,3238.6,0.77193]
[1642706448222,7.639e-05,3238.8,3238.6,0.77193]
[1642706448521,0.0022737,3238.7,3238.6,1.90673]
[1642706448725,0.0022737,3238.7,3238.6,2.90673]
[1642706448924,0.0022737,3238.7,3238.6,1.1348]
[1642706449122,0.0022737,3238.7,3238.2,1.27790983]
[1642706449322,0.0022737,3238.7,3238.3,1.2069]
[1642706449522,0.00170527,3238.6,3238.3,1.2069]
[1642706449925,0.00113685,3238.5,3238.3,1.2069]
[1642706452570,0.00113685,3238.5,3238.3,2.2023014]
[1642706456420,0.00113685,3238.5,3238.3,5.3023014]
[1642706458165,0.05121324,3238.9,3238.3,5.3023014]
[1642706458565,0.00113685,3238.7,3238.3,5.3023014]
[1642706459867,0.00113685,3238.7,3238.3,4.3069]
[1642706460068,0.0242319,3238.6,3238.3,4.3069]
[1642706460467,0.00113685,3238.7,3238.3,4.3069]
[1642706461067,0.00113685,3238.7,3238.4,0.0918145]
[1642706461725,0.00113685,3238.7,3238.3,4.3069]
[1642706465020,0.00113685,3238.7,3238.3,3.1]
[1642706466672,1.21855305,3238.6,3238.3,3.1]
[1642706466873,1.51855305,3238.6,3238.3,3.1]
[1642706467070,1.81855305,3238.6,3238.3,3.1]
[1642706468177,1.81855305,3238.6,3238.4,0.08738777]
[1642706468577,1.81855305,3238.6,3238.3,3.1]
[1642706469422,0.00113685,3238.7,3238.3,3.1]
[1642706469819,0.00113685,3238.7,3238.4,0.10957969]
[1642706470921,0.00113685,3238.7,3238.3,3.1]
[1642706471924,0.00113685,3238.7,3238.4,0.11509522]
[1642706472123,0.00113685,3238.7,3238.3,3.1]
[1642706473870,0.02032735,3238.6,3238.3,3.1]
[1642706474070,0.37,3238.5,3238.3,3.1]
[1642706474269,4.27,3238.4,3238.3,3.1]
[1642706474471,5.4389396,3238.4,3238.3,3.1]
[1642706474771,0.85517542,3237.8,3237.2,5.01982501]
[1642706474968,0.85517542,3237.8,3237.4,2.62215326]
[1642706474969,1.15517542,3237.8,3237.4,2.62215326]
[1642706475169,1.45517542,3237.8,3237.5,2.62215326]
[1642706475567,1.45517542,3237.8,3237.6,0.00397896]
[1642706475768,0.6,3237.8,3237.6,0.00397896]
[1642706475967,0.97,3238.1,3237.6,0.00397896]
[1642706476168,0.3,3237.7,3237.3,0.00568423]
[1642706476369,0.3,3237.7,3237.4,2.62223463]
[1642706476568,0.37,3238.1,3237.4,5.72223463]
[1642706476817,0.87528575,3238.0,3237.5,0.00454738]
[1642706477019,1.17528575,3238.0,3237.4,3.05454738]
[1642706477218,0.00227369,3237.9,3237.4,3.05454738]
[1642706477615,0.00170527,3237.8,3237.4,3.05454738]
[1642706477815,0.00170527,3237.8,3237.2,3.93277837]
[1642706478019,0.00113684,3237.7,3237.3,2.62225762]
[1642706478219,0.00113684,3237.7,3237.3,2.62339447]
[1642706478419,0.00170527,3237.8,3237.3,2.62339447]
[1642706478623,0.30170527,3237.8,3237.3,2.62339447]
[1642706478822,0.00113684,3237.7,3237.3,2.62339447]
[1642706479119,0.30113684,3237.7,3237.3,2.62339447]
[1642706479524,0.00113684,3237.7,3237.3,2.62339447]
[1642706479923,0.00113684,3237.7,3237.3,0.00113685]
[1642706480123,0.00113684,3237.7,3237.3,2.62342904]
[1642706480321,0.00113684,3237.7,3237.3,0.00113685]
[1642706482370,0.00113684,3237.7,3237.4,0.11440079]
[1642706482573,0.00113684,3237.7,3237.3,0.00113685]
[1642706482972,0.30113684,3237.7,3237.3,0.00113685]
[1642706483172,0.00113684,3237.7,3237.3,0.00113685]
[1642706486326,0.00113684,3237.7,3237.4,0.07840969]
[1642706486922,0.00113684,3237.7,3237.3,0.00113685]
[1642706487823,0.00113684,3237.7,3237.4,0.09672289]
[1642706488276,0.00113684,3237.7,3237.3,0.00113685]
[1642706488473,0.00113684,3237.7,3237.3,2.62336226]
[1642706488874,0.00113684,3237.7,3237.3,3.62045758]
[1642706489175,0.00113684,3237.7,3237.3,0.99823217]
[1642706492020,0.00113684,3237.7,3237.4,2.62217142]
[1642706492221,0.00113684,3237.7,3237.5,3.750601]
[1642706492421,0.00113684,3237.7,3237.6,8.37217142]
[1642706492729,0.00113684,3237.7,3237.6,16.94987142]
[1642706493525,0.00113684,3237.7,3237.6,11.19987142]
[1642706495024,0.00113684,3237.7,3237.6,12.19987142]
[1642706495866,0.00113684,3237.7,3237.6,11.19987142]
[1642706496268,0.00113684,3237.7,3237.6,11.19959818]
[1642706505174,0.00030927,3237.7,3237.6,11.19959818]
[1642706508824,0.90709277,3238.4,3237.6,11.19959818]
[1642706509026,1.20709277,3238.4,3237.7,2.62189818]
[1642706509227,0.00371981,3238.3,3237.7,2.62189818]
[1642706509723,1.20709277,3238.4,3237.7,2.62189818]
[1642706509724,0.00315139,3238.2,3237.7,2.62189818]
[1642706510126,0.00258297,3238.1,3237.7,2.62189818]
[1642706510465,0.00201454,3238.0,3237.7,2.62189818]
[1642706510667,0.00201454,3238.0,3237.8,0.11331034]
[1642706510870,0.00144612,3237.9,3237.6,8.5777]
[1642706511070,0.00144612,3237.9,3237.7,2.62186506]
[1642706511274,0.0008777,3237.8,3237.7,3.50509943]
[1642706513677,0.0008777,3237.8,3237.7,2.62186506]
[1642706513877,0.0008777,3237.8,3237.6,8.5777]
[1642706514724,0.0008777,3237.8,3237.2,3.93277837]
[1642706514925,0.3,3237.7,3237.2,3.93277837]
[1642706515126,0.3,3237.7,3237.3,0.00196442]
[1642706515127,0.7907,3237.7,3237.3,0.00196442]
[1642706515325,1.3907,3237.7,3237.3,0.00196442]
[1642706515725,1.0907,3237.7,3237.3,0.00196442]
[1642706515923,1.0907,3237.7,3237.3,2.62426788]
[1642706516326,1.0907,3237.7,3237.4,0.001396]
[1642706517730,0.7907,3237.7,3237.5,0.07906199]
[1642706517974,0.0008777,3237.8,3237.5,0.07906199]
[1642706518176,0.0008777,3237.8,3237.4,0.001396]
[1642706518682,0.0008777,3237.8,3237.5,1.45705439]
[1642706518876,0.0008777,3237.8,3237.6,2.62215037]
[1642706519076,0.0008777,3237.8,3237.5,1.45705439]
[1642706521271,0.03937349,3238.5,3237.6,3.2]
[1642706521473,0.37,3238.8,3237.5,0.00082757]
[1642706521720,0.37,3238.8,3237.6,0.00113685]
[1642706521721,0.00284211,3238.3,3237.6,0.00113685]
[1642706521903,0.00284211,3238.3,3237.5,2.62378966]
[1642706522102,1.58395008,3238.7,3237.6,0.00113685]
[1642706522103,0.00227369,3238.2,3237.6,0.00113685]
[1642706522508,0.00170527,3238.1,3237.6,0.00113685]
[1642706522908,0.00113684,3238.0,3237.6,0.00113685]
[1642706523317,0.00113684,3238.0,3237.5,0.00170527]
[1642706523318,0.37,3238.0,3237.5,0.00170527]
[1642706523526,0.67,3238.0,3237.5,0.00170527]
[1642706523913,0.97,3238.0,3237.5,0.00170527]
[1642706524523,1.14696322,3237.7,3237.5,0.00170527]
[1642706524728,1.19532961,3237.6,3237.5,0.00170527]
[1642706525112,7.54532961,3237.6,3237.5,0.00170527]
[1642706525316,8.54532961,3237.6,3237.4,0.0022737]
[1642706525554,8.54532961,3237.6,3237.3,0.00284212]
[1642706526567,7.54532961,3237.6,3237.3,0.00284212]
[1642706527355,1.44532961,3237.6,3237.3,0.00284212]
[1642706527564,2.44532961,3237.6,3237.4,0.09727385]
[1642706527761,2.44532961,3237.6,3237.3,0.00284212]
[1642706527956,2.44532961,3237.6,3237.5,0.00170527]
[1642706528177,2.44532961,3237.6,3237.3,0.00284212]
[1642706529304,1.44532961,3237.6,3237.3,0.00284212]
[1642706529505,1.58468374,3237.5,3237.3,0.00284212]
[1642706529705,0.37,3237.4,3237.3,0.00284212]
[1642706530304,0.67,3237.4,3237.3,0.00284212]
[1642706530712,2.25468374,3237.4,3237.3,0.00284212]
[1642706533162,0.67,3237.4,3237.3,0.00284212]
[1642706533965,5.47,3237.4,3237.3,0.00284212]
[1642706534164,7.8798638,3237.4,3237.3,0.00284212]
[1642706534569,9.46112492,3237.4,3237.3,0.00284212]
[1642706535474,4.45,3237.3,3237.2,3.93277837]
[1642706535670,6.12,3237.3,3237.2,3.93277837]
[1642706538311,7.4064,3237.3,3237.2,3.93277837]
[1642706539318,7.4064,3237.3,3237.2,1.10109155]
[1642706539524,9.2064,3237.3,3237.2,1.10109155]
[1642706539712,6.25,3237.2,3235.9,1.1404]
[1642706539932,6.25,3237.2,3236.0,2.62330142]
[1642706539933,0.37,3237.1,3236.0,2.62330142]
[1642706540133,4.5501531,3237.0,3236.0,0.00738951]
[1642706540322,0.37,3236.9,3236.0,0.00738951]
[1642706540559,1.0889256,3236.2,3235.4,0.01080005]
[1642706540865,2.09526956,3236.2,3235.5,2.62348812]
[1642706541278,2.09526956,3236.2,3235.6,0.0096632]
[1642706541460,1.00634396,3236.2,3235.7,2.62348812]
[1642706541860,1.00634396,3236.2,3235.8,0.00852635]
[1642706542065,1.00634396,3236.2,3235.9,2.62348812]
[1642706542760,1.00634396,3236.2,3235.8,0.00852635]
[1642706542981,1.00634396,3236.2,3235.9,2.62339405]
[1642706544220,3.2096,3237.2,3235.8,0.00852635]
[1642706544412,1.37445251,3237.1,3236.4,1.05551262]
[1642706544618,1.37445251,3237.1,3236.1,0.01226384]
[1642706544805,1.37445251,3237.1,3236.5,0.00454739]
[1642706545063,1.37445251,3237.1,3236.2,0.00625266]
[1642706545209,0.37,3237.1,3236.2,0.00625266]
[1642706545411,0.97,3237.1,3236.2,0.00625266]
[1642706546510,0.98176096,3237.0,3236.2,0.83299228]
[1642706546909,0.98176096,3237.0,3236.3,0.00568424]
[1642706547311,1.0060432,3237.1,3236.3,0.00568424]
[1642706547960,0.4060432,3237.1,3236.5,0.11013724]
[1642706548175,0.37,3237.1,3236.3,3.70764722]
[1642706548360,0.37,3237.1,3236.2,0.82673962]
[1642706548361,0.37,3237.1,3236.7,0.97524962]
[1642706548769,0.37,3237.1,3236.8,0.00284212]
[1642706549064,0.37,3237.1,3236.2,2.62917843]
[1642706549265,0.67,3237.1,3236.3,2.62292577]
[1642706549465,0.3,3237.1,3236.3,2.62861001]
[1642706549667,1.05947072,3237.3,3236.4,0.00511581]
[1642706549864,1.00756457,3237.0,3236.4,0.00511581]
[1642706550063,1.60756457,3237.0,3236.3,0.00568424]
[1642706550664,0.6,3237.0,3236.3,0.00568424]
[1642706550866,0.33018306,3237.1,3236.3,0.00568424]
[1642706551068,0.3,3237.1,3236.3,0.00568424]
[1642706551465,1.05947072,3237.3,3236.3,0.00568424]
[1642706551727,0.87499157,3237.2,3236.3,0.00568424]
[1642706552520,1.24499157,3237.2,3236.3,0.00568424]
[1642706553134,0.37,3237.2,3236.3,0.00568424]
[1642706554324,0.37,3237.2,3236.7,1.02518507]
[1642706554721,0.37,3237.2,3236.8,0.00284212]
[1642706556375,0.37,3237.2,3236.2,2.6292525]
[1642706556577,0.37,3237.2,3236.3,2.62868408]
[1642706556760,0.37,3237.2,3236.3,0.00568424]
[1642706556960,0.37,3237.2,3236.4,0.00511581]
[1642706557171,0.37,3237.2,3236.2,0.00625266]
[1642706557360,0.37,3237.2,3236.5,1.07105633]
[1642706557761,0.37,3237.2,3236.6,0.00397897]
[1642706560509,0.00098217,3236.6,3236.2,0.00625266]
[1642706560716,0.00098217,3236.6,3236.3,2.62307584]
[1642706561117,0.00098217,3236.6,3236.4,0.00511581]
[1642706561911,0.00098217,3236.6,3236.5,1.01776234]
[1642706562312,0.00098217,3236.6,3236.5,1.02230973]
[1642706563562,0.00098217,3236.6,3236.5,3.64539924]
[1642706565374,0.00098217,3236.6,3236.5,1.02230973]
[1642706565566,0.00098217,3236.6,3236.5,1.02141488]
[1642706565974,0.00098217,3236.6,3236.5,3.64453502]
[1642706566171,0.00098217,3236.6,3236.5,3.64453456]
[1642706569723,0.00098217,3236.6,3236.5,1.02141488]
[1642706570326,0.00098217,3236.6,3236.5,3.64455446]
[1642706570774,0.00098217,3236.6,3236.5,3.18007446]
[1642706573569,0.00098217,3236.6,3236.5,3.17765143]
[1642706575937,1.20138013,3237.2,3236.5,3.17765143]
[1642706576121,1.20138013,3237.2,3236.6,2.62313958]
[1642706576339,1.20138013,3237.2,3236.6,2.62711855]
[1642706576521,1.20138013,3237.2,3236.7,0.00341054]
[1642706576932,1.20138013,3237.2,3236.6,2.62710097]
[1642706577130,1.20138013,3237.2,3236.5,0.54996446]
[1642706577131,1.20138013,3237.2,3236.7,0.00341054]
[1642706577524,1.20138013,3237.2,3236.6,2.6271091]
[1642706577732,1.20138013,3237.2,3236.7,0.00341054]
[1642706578171,1.20138013,3237.2,3236.6,2.62710021]
[1642706578379,1.20138013,3237.2,3236.7,2.62653178]
[1642706578662,1.20138013,3237.2,3236.8,0.00284212]
[1642706579141,1.20138013,3237.2,3236.6,2.62706947]
[1642706579266,1.20138013,3237.2,3236.7,2.62650104]
[1642706579463,1.20138013,3237.2,3236.7,0.00341054]
[1642706579663,1.20138013,3237.2,3236.8,0.00284212]
[1642706579879,1.20138013,3237.2,3236.6,2.62704492]
[1642706580069,1.20138013,3237.2,3236.7,0.00341054]
[1642706580269,0.7728238,3237.1,3236.7,0.00341054]
[1642706580497,0.7728238,3237.1,3236.2,2.62327852]
[1642706580498,0.4935,3237.0,3236.2,2.62953118]
[1642706580671,0.4935,3237.0,3236.3,2.62896276]
[1642706580976,0.4935,3237.0,3236.4,0.00511581]
[1642706581179,1.31970489,3236.7,3236.4,0.00511581]
[1642706581374,1.31970489,3236.7,3236.1,6.8677]
[1642706581375,3.48974098,3236.5,3236.2,0.00625266]
[1642706581579,2.77,3236.4,3236.3,2.62342092]
[1642706581812,3.77,3236.4,3236.3,2.62342092]
[1642706582007,1.67,3236.4,3236.3,2.62910516]
[1642706582423,0.67,3236.4,3236.3,2.62910516]
[1642706582607,1.67,3236.4,3236.3,2.62910516]
[1642706582807,0.67,3236.4,3236.3,2.62910516]
[1642706586263,0.67,3236.4,3236.3,2.63152915]
[1642706587867,0.37,3236.4,3236.3,2.63152915]
[1642706588063,0.67,3236.4,3236.3,2.63152915]
[1642706588665,0.3,3236.5,3236.3,2.63152915]
[1642706588870,0.3,3236.5,3236.4,2.62342092]
[1642706589079,0.37,3237.1,3236.4,2.62853673]
[1642706589323,0.67,3237.1,3236.5,2.62342092]
[1642706589531,0.67,3237.1,3236.5,2.62796831]
[1642706589717,0.67,3237.1,3236.6,3.76332029]
[1642706590018,2.04876538,3237.0,3236.7,0.00341054]
[1642706590335,2.17226538,3237.0,3236.4,2.62826565]
[1642706590517,2.17226538,3237.0,3236.5,2.62314984]
[1642706590718,2.17226538,3237.0,3236.5,2.62769723]
[1642706590921,2.17226538,3237.0,3236.6,2.62712881]
[1642706591123,1.74876538,3236.9,3236.6,0.00397897]
[1642706591340,4.84876538,3236.9,3236.8,0.0028121]
[1642706591721,4.84876538,3236.9,3236.8,0.00565422]
[1642706591722,5.14876538,3236.9,3236.8,0.00565422]
[1642706592625,2.41773923,3236.9,3236.8,0.00565422]
[1642706597815,3.41773923,3236.9,3236.8,0.00565422]
[1642706598017,21.63466222,3236.9,3236.8,0.00565422]
[1642706598217,21.63466222,3236.9,3235.3,8.8801]
[1642706598218,0.0008,3236.7,3235.3,8.8801]
[1642706598416,0.0008,3236.7,3235.4,3.86379656]
[1642706598630,2.31928837,3236.6,3235.5,2.62369656]
[1642706599019,2.31928837,3236.6,3235.6,0.00682108]
[1642706599020,1.29380522,3236.0,3235.6,0.00682108]
[1642706599322,0.97,3236.0,3235.7,2.62369656]
[1642706599717,0.97,3236.0,3235.8,0.00568423]
[1642706599918,0.97,3236.0,3235.9,2.62369656]
[1642706600324,0.97,3236.0,3235.9,2.62881237]
[1642706600561,0.97,3236.0,3235.9,0.00511581]
[1642706601048,0.97,3236.0,3235.9,2.62375124]
[1642706601163,0.97,3236.0,3235.6,2.63057232]
[1642706601364,0.97,3236.0,3235.9,0.00752869]
[1642706602120,1.17052299,3236.0,3235.9,0.00752869]
[1642706602269,7.12052299,3236.0,3235.9,0.00752869]
[1642706602465,9.86981558,3236.0,3235.9,0.00752869]
[1642706603079,2.24289259,3236.0,3235.9,0.00752869]
[1642706603284,2.11929259,3236.0,3235.9,0.00752869]
[1642706604729,2.41929259,3236.0,3235.9,0.00752869]
[1642706604917,2.71929259,3236.0,3235.9,0.00752869]
[1642706610365,3.71929259,3236.0,3235.9,0.00752869]
[1642706610972,3.84289259,3236.0,3235.9,0.00752869]
[1642706611284,2.84289259,3236.0,3235.9,0.00752869]
[1642706611909,2.71929259,3236.0,3235.9,0.00752869]
[1642706612114,2.66929259,3236.0,3235.9,0.00752869]
[1642706613119,3.79289259,3236.0,3235.9,0.00752869]
[1642706614217,6.99289259,3236.0,3235.9,0.00752869]
[1642706615462,3.79289259,3236.0,3235.9,0.00752869]
[1642706616877,5.35257824,3236.0,3235.9,0.00752869]
[1642706617071,11.33230123,3236.0,3235.9,0.00752869]
[1642706617672,11.33230123,3236.0,3235.9,0.00672869]
[1642706617875,11.52903865,3236.0,3235.9,0.00672869]
[1642706618570,6.25,3235.9,3234.5,1.1813]
[1642706618680,0.7731432,3235.5,3234.6,2.62417083]
[1642706618887,0.4936,3235.4,3234.6,0.0073895]
[1642706619311,1.01757448,3234.9,3234.6,0.0073895]
[1642706619523,1.31757448,3234.9,3234.6,0.0073895]
[1642706619717,1.61757448,3234.9,3234.6,0.0073895]
[1642706620778,0.6,3234.9,3234.6,0.0073895]
[1642706621223,0.3,3234.9,3234.8,0.00217415]
[1642706621418,1.4936,3235.4,3234.8,0.00217415]
[1642706621638,0.7936,3235.4,3234.8,0.00842681]
[1642706621853,1.0936,3235.4,3234.9,0.00568423]
[1642706622120,0.9803301,3235.0,3234.9,0.00568423]
[1642706622318,1.2803301,3235.0,3234.9,0.00568423]
[1642706622731,3.02980536,3235.0,3234.9,0.00568423]
[1642706624465,0.3,3234.9,3234.5,1.13915838]
[1642706624770,0.3,3234.9,3234.6,0.00170527]
[1642706624965,0.67,3234.9,3234.6,0.00170527]
[1642706626190,0.67,3234.9,3234.8,0.00239156]
[1642706629420,1.47738268,3234.9,3234.8,0.00239156]
[1642706631363,1.47738268,3234.9,3234.6,0.00409683]
[1642706631772,1.47738268,3234.9,3234.7,0.00113685]
[1642706632186,1.17738268,3234.9,3234.7,0.00113685]
[1642706632367,0.80738268,3234.9,3234.7,0.13579627]
[1642706632563,0.80738268,3234.9,3234.8,5.82399576]
[1642706632966,0.46829064,3235.4,3234.8,3.2]
[1642706633168,0.46829064,3235.4,3234.9,1.07801551]
[1642706633364,0.00227369,3235.3,3234.9,1.07801551]
[1642706633839,0.00170527,3235.2,3234.9,1.07801551]
[1642706633970,1.75108798,3235.2,3234.9,1.07801551]
[1642706634231,0.00113684,3235.1,3234.9,1.07801551]
[1642706635218,1.74938271,3235.0,3234.9,1.07801551]
[1642706636229,1.74938271,3235.0,3234.9,4.66195033]
[1642706636421,0.03508436,3235.1,3234.9,4.66195033]
[1642706636422,0.00113684,3235.1,3234.9,7.28581528]
[1642706636621,3.43485848,3236.1,3235.2,0.08697868]
[1642706636922,3.43485848,3236.1,3235.0,1.209]
[1642706636923,0.00170527,3235.4,3235.0,1.209]
[1642706637320,0.00113685,3235.3,3235.0,1.209]
[1642706637721,0.00284212,3235.6,3235.0,1.209]
[1642706638174,0.0022737,3235.5,3235.1,2.62376445]
[1642706638563,0.00284212,3235.6,3235.1,2.62376445]
[1642706638769,0.00284212,3235.6,3235.0,1.209]
[1642706638968,0.0022737,3235.5,3235.1,2.62378953]
[1642706639369,0.00284212,3235.6,3235.1,2.62378953]
[1642706639766,0.0022737,3235.5,3235.1,2.62378953]
[1642706640176,0.00511581,3236.0,3235.1,2.62378953]
[1642706640406,0.00511581,3236.0,3235.6,1.10971228]
[1642706640567,0.00454739,3235.9,3235.6,1.10971228]
[1642706640981,0.00397897,3235.8,3235.6,1.10971228]